fUSD/lending_fUSD_20260408
["ID","MTS","AMOUNT","RATE_DAILY","PERIOD"]
[420045585,1775631464290,-1368.87603003,0.00046473,120]
[420045586,1775631464317,-1104.22036713,0.00046473,30]
[420045587,1775631464344,-1417.991252,0.00046473,120]
[420045588,1775631464372,-2596.82835558,0.00046473,120]
[420045589,1775631464401,-272.40271656,0.00046473,120]
[420045590,1775631464429,-1528.78310731,0.00046473,120]
[420045591,1775631464457,-3051.60933726,0.00046473,30]
[420045592,1775631464485,-1228.61254469,0.00046473,120]
[420045593,1775631464514,-396.09023217,0.00046473,30]
[420045594,1775631464541,-2012.27910242,0.00046473,120]
[420045595,1775631464569,-253.66639506,0.00046473,120]
[420045596,1775631464596,-2476.05550004,0.00046473,120]
[420045597,1775631464622,-260.09648288,0.00046473,120]
[420045598,1775631464651,-2193.95689788,0.00046473,60]
[420045599,1775631464680,-450.53779092,0.00046473,120]
[420045600,1775631464707,-598.88357701,0.00046473,30]
[420045601,1775631464735,-314.75154871,0.00046473,120]
[420045602,1775631464762,-2129.2070587,0.00046473,120]
[420045603,1775631464790,-997.0,0.00046473,30]
[420045604,1775631464817,-2610.97143265,0.00046473,120]
[420045605,1775631464845,-3189.33063294,0.00046473,120]
[420045606,1775631464873,-2449.84808809,0.00046473,120]
[420045607,1775631464901,-269.34888917,0.00046473,120]
[420045608,1775631464927,-257.29731614,0.00046473,30]
[420045609,1775631464953,-267.8211116,0.00046473,120]
[420045610,1775631464980,-1064.63943784,0.00046473,30]
[420045611,1775631465008,-3175.936142,0.00046473,120]
[420045612,1775631465036,-421.38814633,0.00046473,120]
[420045613,1775631465062,-488.94679051,0.00046473,120]
[420045614,1775631465089,-413.26267814,0.00046473,30]
[420045615,1775631465115,-1418.0997428,0.00046473,120]
[420045616,1775631465141,-1450.67528899,0.00046473,120]
[420045617,1775631465171,-1271.12760852,0.00046473,30]
[420045618,1775631465197,-964.79510309,0.00046473,30]
[420045619,1775631465224,-1751.62613237,0.00046473,30]
[420045620,1775631465252,-3051.2690921,0.00046473,120]
[420045621,1775631465279,-2582.6939674,0.00046473,120]
[420045622,1775631465307,-2073.5604932,0.00046473,120]
[420045623,1775631465335,-1114.79333623,0.00046473,120]
[420045624,1775631465362,-2319.74996202,0.00046473,120]
[420045625,1775631465390,-616.21704513,0.00046473,120]
[420045626,1775631465416,-1888.71441466,0.00046473,60]
[420045627,1775631465443,-272.11128408,0.00046473,120]
[420045628,1775631465469,-2729.02344497,0.00046473,120]
[420045629,1775631465497,-1461.13390911,0.00046473,120]
[420045630,1775631465525,-1431.66781714,0.00046473,120]
[420045631,1775631465552,-2268.22818689,0.00046473,120]
[420045632,1775631465579,-2316.63054102,0.00046473,31]
[420045633,1775631465608,-259.4428562,0.00046473,120]
[420045634,1775631465636,-320.46531881,0.00046473,120]
[420045635,1775631465663,-196.71072497,0.00046473,120]
[420045636,1775631465690,-3103.35855255,0.00046473,120]
[420045637,1775631465717,-1306.53282038,0.00046473,30]
[420045638,1775631465746,-660.94094397,0.00046473,120]
[420045639,1775631465775,-2931.49192634,0.00046473,120]
[420045640,1775631465803,-2908.47446235,0.00046473,120]
[420045641,1775631465831,-288.65016678,0.00046473,30]
[420045642,1775631465858,-1080.40693616,0.00046473,30]
[420045643,1775631465886,-3185.85189471,0.00046473,120]
[420045644,1775631465914,-1688.81802671,0.00046473,120]
[420045645,1775631465941,-1393.46294685,0.00046473,30]
[420045646,1775631465969,-2159.84959189,0.00046473,120]
[420045647,1775631465997,-1521.79779039,0.00046473,120]
[420045648,1775631466025,-1948.17663884,0.00046473,30]
[420045649,1775631466053,-155.65166463,0.00046473,120]
[420045650,1775631466333,-1251.94958118,0.00046473,120]
[420045651,1775631466361,-289.77522777,0.00046473,120]
[420045652,1775631466389,-1805.12547656,0.00046473,120]
[420045653,1775631466416,-722.04705734,0.00046473,120]
[420045654,1775631466449,-3556.62529506,0.00046473,120]
[420045655,1775631466477,-2141.42775974,0.00046473,120]
[420045656,1775631466507,-2304.70920469,0.00046473,120]
[420045657,1775631466536,-1446.62065849,0.00046473,120]
[420045658,1775631466564,-1944.51502972,0.00046473,30]
[420045659,1775631466592,-1404.28608007,0.00046473,120]
[420045660,1775631466620,-756.0,0.00046473,120]
[420045661,1775631466648,-2093.95872592,0.00046473,120]
[420045662,1775631466676,-1951.43087097,0.00046473,120]
[420045663,1775631466703,-2970.16796781,0.00046473,120]
[420045664,1775631466730,-2285.69948107,0.00046473,120]
[420045665,1775631466758,-1092.05031749,0.00046473,120]
[420045666,1775631466787,-526.57751762,0.00046473,120]
[420045667,1775631466814,-183.8534529,0.00046473,120]
[420045668,1775631466842,-853.33856544,0.00046473,120]
[420045669,1775631466871,-1480.28917594,0.00046473,120]
[420045670,1775631466899,-563.42235815,0.00046473,120]
[420045671,1775631466927,-1782.43681179,0.00046473,30]
[420045672,1775631466955,-630.7919939,0.00046473,120]
[420045673,1775631466983,-661.47309421,0.00046473,120]
[420045674,1775631467012,-3683.00783683,0.00046473,30]
[420045675,1775631467040,-1448.47831552,0.00046473,120]
[420045676,1775631467070,-1366.7607935,0.00046473,30]
[420045677,1775631467104,-2087.79548861,0.00046473,49]
[420045678,1775631467133,-1132.52668824,0.00046473,30]
[420045679,1775631467163,-403.61170005,0.00046473,120]
[420045680,1775631467193,-2812.97090247,0.00046473,30]
[420045681,1775631467222,-346.34146811,0.00046473,30]
[420045682,1775631467253,-1266.45945629,0.00046473,120]
[420045683,1775631467281,-1048.95157024,0.00046473,120]
[420045684,1775631467310,-200.2810159,0.00046473,120]
[420045685,1775631467338,-2120.27396491,0.00046473,120]
[420045686,1775631467368,-1417.66339998,0.00046473,120]
[420045687,1775631467399,-934.89076521,0.00046473,30]
[420045688,1775631467429,-2149.30015603,0.00046473,30]
[420045689,1775631467457,-2784.56323622,0.00046473,120]
[420045690,1775631467486,-1288.14752459,0.00046473,30]
[420045691,1775631467515,-237.47674171,0.00046473,120]
[420045692,1775631467543,-1682.15152305,0.00046473,120]
[420045693,1775631467572,-1466.82607522,0.00046473,30]
[420045694,1775631467600,-2651.10178496,0.00046473,30]
[420045695,1775631467629,-279.43567176,0.00046473,120]
[420045696,1775631467657,-1508.60849067,0.00046473,120]
[420045697,1775631467685,-490.51320884,0.00046473,120]
[420045698,1775631467714,-3070.74326563,0.00046473,120]
[420045699,1775631467742,-1239.41939615,0.00046473,120]
[420045700,1775631467773,-1236.46312374,0.00046473,120]
[420045701,1775631467801,-1763.87237171,0.00046473,120]
[420045702,1775631467829,-486.45569716,0.00046473,120]
[420045703,1775631467857,-2602.29283205,0.00046473,120]
[420045704,1775631467885,-736.71591291,0.00046473,120]
[420045705,1775631467914,-1002.33850112,0.00046473,30]
[420045706,1775631467942,-500.0,0.00046473,120]
[420045707,1775631467971,-502.89367276,0.00046473,30]
[420045708,1775631468000,-2004.70015915,0.00046473,120]
[420045709,1775631468029,-1524.48875806,0.00046473,120]
[420045710,1775631468057,-1631.9166384,0.00046473,120]
[420045711,1775631468086,-174.44752151,0.00046473,30]
[420045712,1775631468114,-1642.6808659,0.00046473,120]
[420045713,1775631468141,-1547.97884073,0.00046473,120]
[420045714,1775631468170,-411.34590764,0.00046473,120]
[420045715,1775631468199,-2088.65802357,0.00046473,120]
[420045716,1775631468228,-858.09006231,0.00046473,30]
[420045717,1775631468257,-179.66243032,0.00046473,120]
[420045718,1775631468287,-2540.55805903,0.00046473,46]
[420045719,1775631468317,-1090.85116869,0.00046473,120]
[420045720,1775631468347,-1307.7142521,0.00046473,120]
[420045721,1775631468376,-274.34098562,0.00046473,120]
[420045722,1775631468405,-1856.13347074,0.00046473,120]
[420045723,1775631468435,-836.65351303,0.00046473,120]
[420045724,1775631468463,-1785.50783437,0.00046473,120]
[420045725,1775631468491,-1749.59580805,0.00046473,30]
[420045726,1775631468520,-202.80790827,0.00046473,120]
[420045727,1775631468548,-490.20465489,0.00046473,120]
[420045728,1775631468578,-245.2166312,0.00046473,120]
[420045729,1775631468619,-267.07978604,0.00046473,120]
[420045730,1775631468651,-566.48742082,0.00046473,30]
[420045731,1775631468682,-158.52164377,0.00046473,120]
[420045732,1775631468713,-2132.54659962,0.00046473,120]
[420045733,1775631468745,-3087.80325094,0.00046473,30]
[420045734,1775631468776,-585.62111581,0.00046473,60]
[420045735,1775631468807,-2497.59786172,0.00046473,120]
[420045736,1775631468838,-632.0561229,0.00046473,60]
[420045737,1775631468867,-600.68364408,0.00046473,120]
[420045738,1775631468896,-1572.75899472,0.00046473,120]
[420045739,1775631468928,-2419.70561626,0.00046473,60]
[420045740,1775631468957,-546.6830402,0.00046473,90]
[420045741,1775631468987,-637.49344121,0.00046473,120]
[420045742,1775631469016,-1037.26903132,0.00046473,30]
[420045743,1775631469048,-205.7013725,0.00046473,120]
[420045744,1775631469078,-1435.18536855,0.00046473,120]
[420045745,1775631469109,-1683.49944768,0.00046473,30]
[420045746,1775631469138,-3254.99690898,0.00046473,30]
[420045747,1775631469167,-1038.92174708,0.00046473,120]
[420045748,1775631469196,-201.77871745,0.00046473,30]
[420045749,1775631469226,-1814.11518816,0.00046473,120]
[420045750,1775631469259,-500.59935219,0.00046473,120]
[420045751,1775631469289,-549.0,0.00046473,30]
[420045752,1775631469319,-1003.78891903,0.00046473,120]
[420045753,1775631469348,-1003.80324724,0.00046473,120]
[420045754,1775631469382,-50000.0,0.00046473,54]
[420045755,1775631469413,-500.0,0.00046473,120]
[420045756,1775631469443,-500.0,0.00046473,120]
[420045757,1775631469471,-500.0,0.00046473,120]
[420045758,1775631469500,-500.0,0.00046473,120]
[420045759,1775631469534,-50000.0,0.00046473,55]
[420045760,1775631469564,-500.0,0.00046473,120]
[420045761,1775631469598,-50000.0,0.00046473,56]
[420045762,1775631469628,-2434.097174,0.00046473,90]
[420045763,1775631469659,-500.0,0.00046473,30]
[420045764,1775631469690,-548.0,0.00046473,30]
[420045765,1775631469721,-500.0,0.00046473,30]
[420045766,1775631469750,-1500.0084707,0.00046473,120]
[420045767,1775631469780,-1013.69,0.00046473,120]
[420045768,1775631470303,-2000.0,0.00046473,120]
[420045769,1775631470337,-2000.0,0.00046473,120]
[420045770,1775631470367,-2000.0,0.00046473,120]
[420045771,1775631470394,-2000.0,0.00046473,120]
[420045772,1775631470423,-1000.0,0.00046473,120]
[420045773,1775631470453,-604.0,0.00046473,120]
[420045774,1775631470480,-934.06926302,0.00046473,120]
[420045775,1775631470508,-2980.0,0.00046473,120]
[420045776,1775631470536,-187.05,0.00046473,120]
[420045777,1775631470565,-159.46390102,0.00046473,30]
[420045778,1775631470593,-572.46390102,0.00046473,30]
[420045779,1775631470622,-601.99999998,0.00046473,30]
[420045780,1775631470650,-1239.02207664,0.00046473,45]
[420045781,1775631470679,-202153.0,0.00046473,60]
[420045782,1775631470706,-103364.0,0.00046473,30]
[420045783,1775631470734,-25000.0,0.00046473,120]
[420045784,1775631470763,-195.54861498,0.00046473,120]
[420045785,1775631470791,-461.97,0.00046473,120]
[420045786,1775631470819,-2874.0,0.00046473,120]
[420045787,1775631470846,-215.85501019,0.00046473,120]
[420045788,1775631470874,-5000.0,0.00046473,120]
[420045789,1775631470902,-2122.06,0.00046473,120]
[420045790,1775631470929,-104999.999995,0.00046473,32]
[420045791,1775631470956,-500.0,0.00046473,120]
[420045792,1775631470984,-500.0,0.00046473,120]
[420045793,1775631471011,-500.0,0.00046473,120]
[420045794,1775631471039,-500.0,0.00046473,120]
[420045795,1775631471067,-500.0,0.00046473,120]
[420045796,1775631471094,-20620.068866,0.00046473,120]
[420045797,1775631471122,-5000.0,0.00046473,120]
[420045798,1775631471150,-5000.0,0.00046473,30]
[420045799,1775631471178,-36134.18500478,0.00046473,30]
[420045800,1775631471205,-1658.46956824,0.00046473,120]
[420045801,1775631471233,-2000.0,0.00046473,120]
[420045802,1775631471261,-2655.00067354,0.00046473,30]
[420045803,1775631471289,-2559.92921423,0.00046473,120]
[420045804,1775631471317,-4000.0,0.00046473,31]
[420045805,1775631471345,-2836.0,0.00046473,120]
[420045806,1775631471373,-1000.0,0.00046473,120]
[420045807,1775631471401,-1000.0,0.00046473,120]
[420045808,1775631471429,-1000.0,0.00046473,120]
[420045809,1775631471456,-1000.0,0.00046473,120]
[420045810,1775631471484,-1000.0,0.00046473,120]
[420045811,1775631471511,-1000.0,0.00046473,120]
[420045812,1775631471539,-1000.0,0.00046473,120]
[420045813,1775631471567,-1000.0,0.00046473,120]
[420045814,1775631471594,-1000.0,0.00046473,120]
[420045815,1775631471622,-1000.0,0.00046473,120]
[420045816,1775631471650,-1000.0,0.00046473,120]
[420045817,1775631471679,-1000.0,0.00046473,120]
[420045818,1775631471709,-1000.0,0.00046473,120]
[420045819,1775631471737,-1000.0,0.00046473,120]
[420045820,1775631471765,-1000.0,0.00046473,120]
[420045821,1775631471791,-1000.0,0.00046473,120]
[420045822,1775631471818,-1000.0,0.00046473,120]
[420045823,1775631471845,-1000.0,0.00046473,120]
[420045824,1775631471873,-1000.0,0.00046473,120]
[420045825,1775631471901,-1000.0,0.00046473,120]
[420045826,1775631471929,-1123.47562678,0.00046473,120]
[420045827,1775631471957,-1047.49052084,0.00046473,120]
[420045828,1775631471984,-277.08543372,0.00046473,120]
[420045829,1775631472012,-277.08543372,0.00046473,120]
[420045830,1775631472040,-277.08543372,0.00046473,120]
[420045831,1775631472067,-500.0,0.00046473,120]
[420045832,1775631472095,-500.0,0.00046473,120]
[420045833,1775631472122,-500.0,0.00046473,120]
[420045834,1775631472149,-500.0,0.00046473,120]
[420045835,1775631472176,-500.0,0.00046473,120]
[420045836,1775631472203,-500.0,0.00046473,120]
[420045837,1775631472230,-500.0,0.00046473,120]
[420045838,1775631472257,-582.5695532,0.00046473,120]
[420045839,1775631472285,-519.59696325,0.00046473,120]
[420045840,1775631472312,-500.0,0.00046473,120]
[420045841,1775631472339,-610.01137188,0.00046473,120]
[420045842,1775631472365,-500.0,0.00046473,120]
[420045843,1775631472394,-500.0,0.00046473,120]
[420045844,1775631472422,-500.0,0.00046473,120]
[420045845,1775631472449,-636.61864043,0.00046473,120]
[420045846,1775631472475,-500.0,0.00046473,120]
[420045847,1775631472503,-227.46978832,0.00046473,120]
[420045848,1775631472534,-500.0,0.00046473,120]
[420045849,1775631472560,-500.0,0.00046473,120]
[420045850,1775631472589,-500.0,0.00046473,120]
[420045851,1775631472618,-500.0,0.00046473,120]
[420045852,1775631472645,-500.0,0.00046473,120]
[420045853,1775631472673,-500.0,0.00046473,120]
[420045854,1775631472701,-647.4559278,0.00046473,120]
[420045855,1775631472729,-228.999472,0.00046473,120]
[420045856,1775631472757,-206.47401944,0.00046473,120]
[420045857,1775631472785,-500.0,0.00046473,120]
[420045858,1775631472813,-500.0,0.00046473,120]
[420045859,1775631472842,-500.0,0.00046473,120]
[420045860,1775631472870,-500.0,0.00046473,120]
[420045861,1775631472898,-500.0,0.00046473,120]
[420045862,1775631472925,-500.0,0.00046473,120]
[420045863,1775631472953,-566.09186745,0.00046473,120]
[420045864,1775631472980,-500.0,0.00046473,120]
[420045865,1775631473008,-455.16001768,0.00046473,120]
[420045866,1775631473037,-500.0,0.00046473,120]
[420045867,1775631473063,-500.0,0.00046473,120]
[420045868,1775631473089,-500.0,0.00046473,120]
[420045869,1775631473117,-500.0,0.00046473,120]
[420045870,1775631473145,-500.0,0.00046473,120]
[420045871,1775631473172,-629.08875157,0.00046473,120]
[420045872,1775631473201,-500.0,0.00046473,120]
[420045873,1775631473228,-377.47862743,0.00046473,120]
[420045874,1775631473256,-489.91175629,0.00046473,120]
[420045875,1775631473284,-573.08088254,0.00046473,120]
[420045876,1775631473312,-1628.31,0.00046473,120]
[420045877,1775631473341,-1628.31,0.00046473,120]
[420045878,1775631473369,-1628.31,0.00046473,120]
[420045879,1775631473396,-1628.31,0.00046473,120]
[420045880,1775631473423,-1628.31,0.00046473,120]
[420045881,1775631473452,-1628.31,0.00046473,120]
[420045882,1775631473479,-1628.31,0.00046473,120]
[420045883,1775631473506,-1628.31,0.00046473,120]
[420045884,1775631473534,-1628.31,0.00046473,120]
[420045885,1775631473562,-1628.31,0.00046473,120]
[420045886,1775631473592,-1628.31,0.00046473,120]
[420045887,1775631473897,-500.0,0.00046473,120]
[420045888,1775631473924,-1628.31,0.00046473,120]
[420045889,1775631473952,-414.17036088,0.00046473,120]
[420045890,1775631473982,-1628.31,0.00046473,120]
[420045891,1775631474011,-1628.31,0.00046473,120]
[420045892,1775631474039,-1628.31,0.00046473,120]
[420045893,1775631474067,-1628.31,0.00046473,120]
[420045894,1775631474096,-1628.31,0.00046473,120]
[420045895,1775631474124,-1628.31,0.00046473,120]
[420045896,1775631474152,-1628.31,0.00046473,120]
[420045897,1775631474179,-1628.31,0.00046473,120]
[420045898,1775631474206,-1628.31,0.00046473,120]
[420045899,1775631474234,-1628.31,0.00046473,120]
[420045900,1775631474263,-1628.31,0.00046473,120]
[420045901,1775631474292,-1628.34550613,0.00046473,120]
[420045902,1775631474320,-500.0,0.00046473,120]
[420045903,1775631474348,-500.0,0.00046473,120]
[420045904,1775631474376,-330.72077422,0.00046473,120]
[420045905,1775631474404,-580.83697804,0.00046473,120]
[420045906,1775631474431,-338.38426685,0.00046473,120]
[420045907,1775631474460,-1007.57,0.00046473,120]
[420045908,1775631474489,-1007.57,0.00046473,120]
[420045909,1775631474518,-1007.57,0.00046473,120]
[420045910,1775631474548,-1007.57,0.00046473,120]
[420045911,1775631474577,-1007.57,0.00046473,120]
[420045912,1775631474608,-1007.57,0.00046473,120]
[420045913,1775631474636,-1007.57,0.00046473,120]
[420045914,1775631474665,-1007.57,0.00046473,120]
[420045915,1775631474694,-1007.57,0.00046473,120]
[420045916,1775631474722,-1007.57,0.00046473,120]
[420045917,1775631474752,-1007.57,0.00046473,120]
[420045918,1775631474781,-1007.57,0.00046473,120]
[420045919,1775631474810,-1007.57,0.00046473,120]
[420045920,1775631474837,-1007.57,0.00046473,120]
[420045921,1775631474865,-1007.57,0.00046473,120]
[420045922,1775631474893,-1007.57,0.00046473,120]
[420045923,1775631474922,-1007.57,0.00046473,120]
[420045924,1775631474952,-1007.57,0.00046473,120]
[420045925,1775631474980,-1007.57,0.00046473,120]
[420045926,1775631475009,-1007.57,0.00046473,120]
[420045927,1775631475037,-1007.57,0.00046473,120]
[420045928,1775631475065,-1007.57,0.00046473,120]
[420045929,1775631475092,-1007.57,0.00046473,120]
[420045930,1775631475120,-1007.61278802,0.00046473,120]
[420045931,1775631475147,-500.0,0.00046473,120]
[420045932,1775631475174,-500.0,0.00046473,120]
[420045933,1775631475201,-550.63211395,0.00046473,120]
[420045934,1775631475228,-500.0,0.00046473,120]
[420045935,1775631475256,-500.0,0.00046473,120]
[420045936,1775631475284,-500.0,0.00046473,120]
[420045937,1775631475312,-500.0,0.00046473,120]
[420045938,1775631475339,-500.0,0.00046473,120]
[420045939,1775631475368,-500.0,0.00046473,120]
[420045940,1775631475395,-500.0,0.00046473,120]
[420045941,1775631475422,-500.0,0.00046473,120]
[420045942,1775631475450,-500.0,0.00046473,120]
[420045943,1775631475477,-500.0,0.00046473,120]
[420045944,1775631475506,-500.0,0.00046473,120]
[420045945,1775631475533,-500.0,0.00046473,120]
[420045946,1775631475561,-500.0,0.00046473,120]
[420045947,1775631475588,-500.0,0.00046473,120]
[420045948,1775631475616,-500.0,0.00046473,120]
[420045949,1775631475645,-452.85823077,0.00046473,120]
[420045950,1775631475673,-500.0,0.00046473,120]
[420045951,1775631475701,-500.0,0.00046473,120]
[420045952,1775631475731,-500.0,0.00046473,120]
[420045953,1775631475760,-500.0,0.00046473,120]
[420045954,1775631475790,-500.0,0.00046473,120]
[420045955,1775631475819,-500.0,0.00046473,120]
[420045956,1775631475847,-500.0,0.00046473,120]
[420045957,1775631475876,-500.0,0.00046473,120]
[420045958,1775631475906,-500.0,0.00046473,120]
[420045959,1775631475934,-500.0,0.00046473,120]
[420045960,1775631475962,-500.0,0.00046473,120]
[420045961,1775631475989,-500.0,0.00046473,120]
[420045962,1775631476018,-242.5036183,0.00046473,120]
[420045963,1775631476047,-500.0,0.00046473,120]
[420045964,1775631476075,-500.0,0.00046473,120]
[420045965,1775631476103,-500.0,0.00046473,120]
[420045966,1775631476131,-394.12775287,0.00046473,120]
[420045967,1775631476159,-500.0,0.00046473,120]
[420045968,1775631476187,-500.0,0.00046473,120]
[420045969,1775631476215,-500.0,0.00046473,120]
[420045970,1775631476243,-500.0,0.00046473,120]
[420045971,1775631476271,-500.0,0.00046473,120]
[420045972,1775631476301,-500.0,0.00046473,120]
[420045973,1775631476329,-500.0,0.00046473,120]
[420045974,1775631476357,-500.0,0.00046473,120]
[420045975,1775631476384,-602.19640846,0.00046473,120]
[420045976,1775631476412,-294.96,0.00046473,120]
[420045977,1775631476439,-500.0,0.00046473,120]
[420045978,1775631476468,-500.0,0.00046473,120]
[420045979,1775631476497,-500.0,0.00046473,120]
[420045980,1775631476527,-500.0,0.00046473,120]
[420045981,1775631476555,-500.0,0.00046473,120]
[420045982,1775631476582,-500.0,0.00046473,120]
[420045983,1775631476612,-500.0,0.00046473,120]
[420045984,1775631476640,-500.0,0.00046473,120]
[420045985,1775631476669,-312.40749094,0.00046473,120]
[420045986,1775631476697,-500.0,0.00046473,120]
[420045987,1775631476725,-500.0,0.00046473,120]
[420045988,1775631476755,-500.0,0.00046473,120]
[420045989,1775631476783,-500.0,0.00046473,120]
[420045990,1775631476811,-500.0,0.00046473,120]
[420045991,1775631476840,-586.15863356,0.00046473,120]
[420045992,1775631476869,-500.0,0.00046473,120]
[420045993,1775631476898,-500.0,0.00046473,120]
[420045994,1775631476927,-500.0,0.00046473,120]
[420045995,1775631476957,-500.0,0.00046473,120]
[420045996,1775631476986,-500.0,0.00046473,120]
[420045997,1775631477014,-500.0,0.00046473,120]
[420045998,1775631477041,-500.0,0.00046473,120]
[420045999,1775631477069,-235.59557871,0.00046473,120]
[420046000,1775631477096,-500.0,0.00046473,120]
[420046001,1775631477124,-500.0,0.00046473,120]
[420046002,1775631477151,-500.0,0.00046473,120]
[420046003,1775631477177,-500.0,0.00046473,120]
[420046004,1775631477461,-500.0,0.00046473,120]
[420046005,1775631477490,-500.0,0.00046473,120]
[420046006,1775631477519,-500.0,0.00046473,120]
[420046007,1775631477548,-500.0,0.00046473,120]
[420046008,1775631477578,-500.0,0.00046473,120]
[420046009,1775631477606,-299.21343995,0.00046473,120]
[420046010,1775631477634,-198.15434109,0.00046473,120]
[420046011,1775631477662,-614.07342641,0.00046473,120]
[420046012,1775631477691,-598.08105067,0.00046473,120]
[420046013,1775631477720,-500.0,0.00046473,120]
[420046014,1775631477749,-168.61047911,0.00046473,120]
[420046015,1775631477778,-500.0,0.00046473,120]
[420046016,1775631477805,-155.05344725,0.00046473,120]
[420046017,1775631477833,-600.11200177,0.00046473,120]
[420046018,1775631477860,-500.0,0.00046473,120]
[420046019,1775631477888,-171.72781039,0.00046473,120]
[420046020,1775631477917,-2071.05055245,0.00046473,120]
[420046021,1775631477946,-647.48106315,0.00046473,120]
[420046022,1775631477974,-608.97749151,0.00046473,120]
[420046023,1775631478004,-500.0,0.00046473,120]
[420046024,1775631478034,-215.36833364,0.00046473,120]
[420046025,1775631478064,-500.0,0.00046473,120]
[420046026,1775631478096,-500.0,0.00046473,120]
[420046027,1775631478126,-182.64593452,0.00046473,120]
[420046028,1775631478157,-619.98092915,0.00046473,120]
[420046029,1775631478187,-500.0,0.00046473,120]
[420046030,1775631478216,-500.0,0.00046473,120]
[420046031,1775631478247,-500.0,0.00046473,120]
[420046032,1775631478278,-500.0,0.00046473,120]
[420046033,1775631478309,-500.0,0.00046473,120]
[420046034,1775631478338,-500.0,0.00046473,120]
[420046035,1775631478369,-500.0,0.00046473,120]
[420046036,1775631478400,-500.0,0.00046473,120]
[420046037,1775631478430,-500.0,0.00046473,120]
[420046038,1775631478459,-500.0,0.00046473,120]
[420046039,1775631478489,-238.28279496,0.00046473,120]
[420046040,1775631478520,-500.0,0.00046473,120]
[420046041,1775631478551,-500.0,0.00046473,120]
[420046042,1775631478583,-500.0,0.00046473,120]
[420046043,1775631478614,-518.49828176,0.00046473,120]
[420046044,1775631478646,-500.0,0.00046473,120]
[420046045,1775631478677,-500.0,0.00046473,120]
[420046046,1775631478709,-500.0,0.00046473,120]
[420046047,1775631478740,-500.0,0.00046473,120]
[420046048,1775631478769,-574.0,0.00046473,120]
[420046049,1775631478801,-500.0,0.00046473,120]
[420046050,1775631478833,-500.0,0.00046473,120]
[420046051,1775631478863,-513.23071458,0.00046473,120]
[420046052,1775631478893,-500.0,0.00046473,120]
[420046053,1775631478923,-500.0,0.00046473,120]
[420046054,1775631478953,-500.0,0.00046473,120]
[420046055,1775631478984,-500.0,0.00046473,120]
[420046056,1775631479016,-500.0,0.00046473,120]
[420046057,1775631479047,-500.0,0.00046473,120]
[420046058,1775631479077,-591.32519114,0.00046473,120]
[420046059,1775631479107,-500.0,0.00046473,120]
[420046060,1775631479136,-500.0,0.00046473,120]
[420046061,1775631479165,-200.0,0.00046473,120]
[420046062,1775631479194,-500.0,0.00046473,120]
[420046063,1775631479223,-500.0,0.00046473,120]
[420046064,1775631479252,-500.0,0.00046473,120]
[420046065,1775631479280,-500.0,0.00046473,120]
[420046066,1775631479311,-500.0,0.00046473,120]
[420046067,1775631479341,-537.18503813,0.00046473,120]
[420046068,1775631479369,-500.0,0.00046473,120]
[420046069,1775631479397,-500.0,0.00046473,120]
[420046070,1775631479425,-500.0,0.00046473,120]
[420046071,1775631479453,-500.0,0.00046473,120]
[420046072,1775631479481,-500.0,0.00046473,120]
[420046073,1775631479510,-500.0,0.00046473,120]
[420046074,1775631479538,-500.0,0.00046473,120]
[420046075,1775631479565,-199.94820274,0.00046473,120]
[420046076,1775631479594,-552.4,0.00046473,120]
[420046077,1775631479622,-552.4,0.00046473,120]
[420046078,1775631479651,-552.4,0.00046473,120]
[420046079,1775631479679,-552.4,0.00046473,120]
[420046080,1775631479707,-552.4,0.00046473,120]
[420046081,1775631479737,-552.4,0.00046473,120]
[420046082,1775631479766,-552.4,0.00046473,120]
[420046083,1775631479794,-552.4,0.00046473,120]
[420046084,1775631479823,-552.4,0.00046473,120]